[Event "24th Hoogeschool Zeeland 2022"]
[Site "Vlissingen"]
[Date "2022.08.08"]
[Round "4.19"]
[White "Ollenberger, Roland"]
[Black "Pijpers, Peter"]
[Result "1-0"]
[ECO "C27"]
[WhiteElo "2264"]
[BlackElo "2026"]
[Annotator "RC"]
[PlyCount "79"]
[EventDate "2022.08.05"]
[EventType "swiss"]
[EventCountry "NED"]
[SourceTitle "playchess.com"]
[Source "ChessBase"]
[SourceQuality "1"]
[TimeControl "40/5400+30:1800+30"]

1. e4 {[%emt 0:00:03]} e5 {[%emt 0:00:22]} 2. Nf3 {[%emt 0:00:32]} Nf6 {[%emt 0:00:34]} 3. Nc3 {[%emt 0:00:47]} Bc5 {[%emt 0:00:29]} 4. Bc4 {[%emt 0:05:28]} d6 {[%emt 0:05:38]} 5. d3 {[%emt 0:00:30]} Be6 {[%emt 0:01:23]} 6. Bxe6 {[%emt 0:03:08]} fxe6 {[%emt 0:02:49]} 7. Na4 {[%emt 0:00:58]} Nbd7 {[%emt 0:07:48]} 8. Nxc5 {[%emt 0:01:54]} Nxc5 {[%emt 0:00:07]} 9. Be3 {[%emt 0:00:13]} Ncd7 {[%emt 0:01:12]} 10. c3 {[%emt 0:00:33]} Qe7 {[%emt 0:11:27]} 11. Qb3 {[%emt 0:02:04]} b6 {[%emt 0:01:13]} 12. Qc4 {[%emt 0:04:19]} c5 {[%emt 0:03:57]} 13. O-O {[%emt 0:09:40]} h6 {[%emt 0:09:52]} 14. Rad1 {[%emt 0:15:26]} Ng4 {[%emt 0:06:25]} 15. d4 {[%emt 0:05:11]} O-O {[%emt 0:01:55]} 16. dxc5 {[%emt 0:05:55]} bxc5 {[%emt 0:04:52]} 17. Rfe1 {[%emt 0:04:34]} Nxe3 {[%emt 0:09:10]} 18. Rxe3 {[%emt 0:01:43]} Nf6 {[%emt 0:02:07]} 19. Qa6 {[%emt 0:03:48]} Rad8 {[%emt 0:16:12]} 20. h3 {[%emt 0:04:28]} Rd7 {[%emt 0:04:24]} 21. Qe2 {[%emt 0:00:56]} Nh5 {[%emt 0:00:58]} 22. g3 {[%emt 0:02:34]} Qf6 {[%emt 0:02:01]} 23. Nh2 {[%emt 0:09:37]} Qg6 {[%emt 0:01:12]} 24. Qg4 {[%emt 0:01:35]} Qf7 {[%emt 0:00:19]} 25. Rd2 {[%emt 0:01:12]} Nf6 {[%emt 0:01:37]} 26. Qe2 {[%emt 0:02:07]} h5 {[%emt 0:02:42]} 27. c4 {[%emt 0:04:10]} Qg6 {[%emt 0:00:23]} 28. h4 {[%emt 0:04:39]} Ne8 {[%emt 0:00:33]} 29. Rf3 {[%emt 0:00:55]} Nf6 {[%emt 0:00:34]} 30. Re3 {[%emt 0:00:16]} Ne8 {[%emt 0:00:08]} 31. Kg2 {[%emt 0:00:43]} Rdf7 {[%emt 0:00:13]} 32. f3 {[%emt 0:00:39]} Qh6 {[%emt 0:00:31]} 33. Ra3 {[%emt 0:01:36]} g5 {[%emt 0:00:14]} 34. Qe3 {[%emt 0:00:14]} Rg7 {[%emt 0:00:34]} 35. hxg5 {[%emt 0:01:00]} Rxg5 {[%emt 0:00:05]} 36. Nf1 {[%emt 0:00:24]} Rf7 {[%emt 0:00:59]} 37. Kg1 {[%emt 0:00:37]} Rxg3+ {[%emt 0:00:37]} 38. Nxg3 {[%emt 0:00:15]} Qxe3+ {[%emt 0:00:19]} 39. Rxe3 {[%emt 0:00:06]} Rg7 {[%emt 0:04:05]} 40. Rg2 {[%emt 0:00:09]} 1-0

[Event "24th Hoogeschool Zeeland 2022"]
[Site "Vlissingen"]
[Date "2022.08.08"]
[Round "4.20"]
[White "Lacrosse, Marc"]
[Black "Lammens, Tim"]
[Result "1-0"]
[ECO "D36"]
[WhiteElo "2003"]
[BlackElo "2255"]
[Annotator "RC"]
[PlyCount "95"]
[EventDate "2022.08.05"]
[EventType "swiss"]
[EventCountry "NED"]
[SourceTitle "playchess.com"]
[Source "ChessBase"]
[SourceQuality "1"]
[TimeControl "40/5400+30:1800+30"]

1. d4 {[%emt 0:01:43]} Nf6 {[%emt 0:00:05]} 2. c4 {[%emt 0:00:34]} e6 {[%emt 0:00:05]} 3. Nf3 {[%emt 0:01:05]} d5 {[%emt 0:00:06]} 4. Nc3 {[%emt 0:00:55]} Be7 {[%emt 0:00:19]} 5. Bg5 {[%emt 0:01:30]} Nbd7 {[%emt 0:00:14]} 6. e3 {[%emt 0:02:28]} h6 {[%emt 0:00:11]} 7. Bh4 {[%emt 0:01:19]} O-O {[%emt 0:00:12]} 8. cxd5 {[%emt 0:02:20]} exd5 {[%emt 0:00:16]} 9. Bd3 {[%emt 0:07:30]} c6 {[%emt 0:00:09]} 10. Qc2 {[%emt 0:00:34]} Re8 {[%emt 0:00:12]} 11. O-O {[%emt 0:01:18]} Ne4 {[%emt 0:00:55]} 12. Bxe7 {[%emt 0:00:27]} Qxe7 {[%emt 0:00:04]} 13. b4 {[%emt 0:03:58]} Ndf6 {[%emt 0:01:24]} 14. b5 {[%emt 0:04:36]} cxb5 {[%emt 0:00:58]} 15. Nxb5 {[%emt 0:18:13]} Bg4 {[%emt 0:11:18]} 16. Ne5 {[%emt 0:07:45]} Rac8 {[%emt 0:27:36]} 17. Qb2 {[%emt 0:03:19]} a6 {[%emt 0:00:13]} 18. Bxe4 {[%emt 0:09:04]} dxe4 {[%emt 0:00:10]} 19. Nc3 {[%emt 0:02:50]} Be6 {[%emt 0:02:24]} 20. Rac1 {[%emt 0:08:22]} b5 {[%emt 0:02:35]} 21. Rc2 {[%emt 0:07:02]} Bc4 {[%emt 0:06:19]} 22. Rfc1 {[%emt 0:01:06]} Bd3 {[%emt 0:14:48]} 23. Nd5 {[%emt 0:01:28]} Nxd5 {[%emt 0:02:42]} 24. Rxc8 {[%emt 0:00:11]} Rxc8 {[%emt 0:00:36]} 25. Rxc8+ {[%emt 0:00:06]} Kh7 {[%emt 0:00:01]} 26. Rc5 {[%emt 0:03:23]} Nb6 {[%emt 0:02:26]} 27. Nxd3 {[%emt 0:06:10]} exd3 {[%emt 0:00:02]} 28. Qb1 {[%emt 0:01:21]} Qe4 {[%emt 0:01:16]} 29. Rc3 {[%emt 0:00:51]} Nd5 {[%emt 0:01:22]} 30. Rb3 {[%emt 0:00:59]} f5 {[%emt 0:02:05]} 31. Qxd3 {[%emt 0:00:19]} Qe6 {[%emt 0:00:02]} 32. Rb1 {[%emt 0:00:45]} b4 {[%emt 0:00:22]} 33. Rc1 {[%emt 0:01:46]} Nc3 {[%emt 0:01:20]} 34. a3 {[%emt 0:00:40]} a5 {[%emt 0:01:20]} 35. axb4 {[%emt 0:00:12]} axb4 {[%emt 0:01:25]} 36. Rxc3 {[%emt 0:00:31]} bxc3 {[%emt 0:00:02]} 37. Qxc3 {[%emt 0:00:12]} Qe4 {[%emt 0:00:02]} 38. f3 {[%emt 0:01:09]} Qb1+ {[%emt 0:00:02]} 39. Kf2 {[%emt 0:00:06]} Qa2+ {[%emt 0:00:11]} 40. Kg3 {[%emt 0:00:40]} Qe2 {[%emt 0:00:14]} 41. h4 {[%emt 0:14:06]} Kg6 {[%emt 0:05:01]} 42. d5 {[%emt 0:02:49]} Kh5 {[%emt 0:04:23]} 43. d6 {[%emt 0:05:47]} g5 {[%emt 0:07:36]} 44. hxg5 {[%emt 0:01:37]} hxg5 {[%emt 0:00:04]} 45. d7 {[%emt 0:01:30]} f4+ {[%emt 0:05:37]} 46. exf4 {[%emt 0:01:44]} gxf4+ {[%emt 0:00:21]} 47. Kxf4 {[%emt 0:03:51]} Qe7 {[%emt 0:02:49]} 48. Qe5+ {[%emt 0:00:10]} 1-0

[Event "24th Hoogeschool Zeeland 2022"]
[Site "Vlissingen"]
[Date "2022.08.08"]
[Round "4.21"]
[White "Van Baar, Esper"]
[Black "Ackermann, Frank"]
[Result "1/2-1/2"]
[ECO "B51"]
[WhiteElo "2281"]
[BlackElo "2012"]
[Annotator "RC"]
[PlyCount "54"]
[EventDate "2022.08.05"]
[EventType "swiss"]
[EventCountry "NED"]
[SourceTitle "playchess.com"]
[Source "ChessBase"]
[SourceQuality "1"]
[TimeControl "40/5400+30:1800+30"]

1. e4 {[%emt 0:00:01]} c5 {[%emt 0:00:17]} 2. Nf3 {[%emt 0:00:14]} d6 {[%emt 0:00:15]} 3. Bb5+ {[%emt 0:01:53]} Nd7 {[%emt 0:00:15]} 4. a4 {[%emt 0:01:16]} a6 {[%emt 0:00:46]} 5. Be2 {[%emt 0:00:04]} b6 {[%emt 0:04:44]} 6. d4 {[%emt 0:00:51]} cxd4 {[%emt 0:00:42]} 7. Qxd4 {[%emt 0:00:05]} Bb7 {[%emt 0:02:06]} 8. O-O {[%emt 0:01:15]} Ngf6 {[%emt 0:01:53]} 9. Nc3 {[%emt 0:00:23]} e5 {[%emt 0:06:36]} 10. Qe3 {[%emt 0:00:11]} Qc7 {[%emt 0:07:31]} 11. Nd2 {[%emt 0:03:01]} Be7 {[%emt 0:03:59]} 12. Rd1 {[%emt 0:00:49]} d5 {[%emt 0:07:43]} 13. exd5 {[%emt 0:04:46]} Nxd5 {[%emt 0:02:50]} 14. Nxd5 {[%emt 0:00:13]} Bxd5 {[%emt 0:00:19]} 15. c4 {[%emt 0:07:51]} Be6 {[%emt 0:04:31]} 16. b3 {[%emt 0:03:53]} O-O {[%emt 0:01:22]} 17. Ne4 {[%emt 0:04:38]} Rad8 {[%emt 0:12:15]} 18. Bb2 {[%emt 0:02:37]} f6 {[%emt 0:05:12]} 19. Nc3 {[%emt 0:07:10]} Bc5 {[%emt 0:01:33]} 20. Qg3 {[%emt 0:01:05]} Nb8 {[%emt 0:07:01]} 21. Nd5 {[%emt 0:09:11]} Qf7 {[%emt 0:06:32]} 22. Bf3 {[%emt 0:01:42]} Nc6 {[%emt 0:01:30]} 23. Nxb6 {[%emt 0:11:19]} Nb4 {[%emt 0:04:07]} 24. a5 {[%emt 0:03:16]} Nd3 {[%emt 0:09:17]} 25. Rd2 {[%emt 0:05:48]} Nxb2 {[%emt 0:01:04]} 26. Rxb2 {[%emt 0:00:06]} Bd4 {[%emt 0:00:14]} 27. Raa2 {[%emt 0:00:38]} Bxb2 {[%emt 0:00:15]} 1/2-1/2

[Event "24th Hoogeschool Zeeland 2022"]
[Site "Vlissingen"]
[Date "2022.08.08"]
[Round "4.22"]
[White "Laux, Dominik"]
[Black "De Wolf, Johan"]
[Result "1-0"]
[ECO "B01"]
[WhiteElo "2320"]
[BlackElo "2010"]
[Annotator "RC"]
[PlyCount "69"]
[EventDate "2022.08.05"]
[EventType "swiss"]
[EventCountry "NED"]
[SourceTitle "playchess.com"]
[Source "ChessBase"]
[SourceQuality "1"]
[TimeControl "40/5400+30:1800+30"]

1. e4 {[%emt 0:00:24]} d5 {[%emt 0:00:31]} 2. exd5 {[%emt 0:00:22]} Nf6 {[%emt 0:00:10]} 3. d4 {[%emt 0:00:42]} Nxd5 {[%emt 0:00:08]} 4. c4 {[%emt 0:00:59]} Nb6 {[%emt 0:00:08]} 5. Nf3 {[%emt 0:00:41]} Bg4 {[%emt 0:00:27]} 6. c5 {[%emt 0:01:04]} N6d7 {[%emt 0:00:18]} 7. Bc4 {[%emt 0:00:25]} e6 {[%emt 0:01:20]} 8. Nc3 {[%emt 0:00:27]} Be7 {[%emt 0:04:44]} 9. h3 {[%emt 0:02:13]} Bxf3 {[%emt 0:13:40]} 10. Qxf3 {[%emt 0:00:05]} Nc6 {[%emt 0:03:17]} 11. Be3 {[%emt 0:00:05]} O-O {[%emt 0:11:49]} 12. O-O-O {[%emt 0:00:06]} Bg5 {[%emt 0:14:26]} 13. Bb5 {[%emt 0:09:15]} Bxe3+ {[%emt 0:03:05]} 14. fxe3 {[%emt 0:01:55]} Nb4 {[%emt 0:07:49]} 15. Bxd7 {[%emt 0:15:22]} Qxd7 {[%emt 0:00:31]} 16. Qxb7 {[%emt 0:01:04]} Rab8 {[%emt 0:03:25]} 17. Qf3 {[%emt 0:02:52]} c6 {[%emt 0:02:27]} 18. e4 {[%emt 0:06:16]} f5 {[%emt 0:04:07]} 19. Rhe1 {[%emt 0:04:40]} Qb7 {[%emt 0:04:56]} 20. Rd2 {[%emt 0:03:17]} fxe4 {[%emt 0:05:52]} 21. Qxe4 {[%emt 0:00:44]} Rf6 {[%emt 0:00:35]} 22. Qe2 {[%emt 0:05:49]} Nd5 {[%emt 0:02:31]} 23. Ne4 {[%emt 0:04:44]} Rg6 {[%emt 0:00:41]} 24. Rf1 {[%emt 0:04:29]} Qb4 {[%emt 0:02:46]} 25. Rf3 {[%emt 0:07:28]} Qa5 {[%emt 0:01:30]} 26. Nd6 {[%emt 0:07:22]} Qc7 {[%emt 0:05:46]} 27. Qe4 {[%emt 0:03:37]} a5 {[%emt 0:02:55]} 28. Rdf2 {[%emt 0:18:03]} Qe7 {[%emt 0:00:41]} 29. h4 {[%emt 0:00:00]} a4 {[%emt 0:00:48]} 30. a3 {[%emt 0:00:00]} Rh6 {[%emt 0:01:27]} 31. g3 {[%emt 0:00:00]} Rg6 {[%emt 0:00:12]} 32. Kc2 {[%emt 0:00:00]} Rf6 {[%emt 0:00:52]} 33. Rxf6 {[%emt 0:00:00]} gxf6 {[%emt 0:00:11]} 34. Re2 {[%emt 0:00:00]} e5 {[%emt 0:01:41]} 35. dxe5 {[%emt 0:00:00]} 1-0

[Event "24th Hoogeschool Zeeland 2022"]
[Site "Vlissingen"]
[Date "2022.08.08"]
[Round "4.23"]
[White "Bruil, Rembrandt"]
[Black "Smeets, Kobe"]
[Result "1-0"]
[ECO "E01"]
[WhiteElo "2204"]
[BlackElo "1963"]
[Annotator "RC"]
[PlyCount "65"]
[EventDate "2022.08.05"]
[EventType "swiss"]
[EventCountry "NED"]
[SourceTitle "playchess.com"]
[Source "ChessBase"]
[SourceQuality "1"]
[TimeControl "40/5400+30:1800+30"]

1. d4 {[%emt 0:00:03]} d5 {[%emt 0:00:04]} 2. c4 {[%emt 0:00:21]} e6 {[%emt 0:00:08]} 3. Nf3 {[%emt 0:00:22]} c6 {[%emt 0:00:15]} 4. Nbd2 {[%emt 0:00:45]} Nf6 {[%emt 0:00:31]} 5. g3 {[%emt 0:00:54]} Nbd7 {[%emt 0:00:47]} 6. Bg2 {[%emt 0:00:09]} Bd6 {[%emt 0:02:47]} 7. O-O {[%emt 0:00:16]} O-O {[%emt 0:00:06]} 8. Qc2 {[%emt 0:00:27]} Re8 {[%emt 0:01:27]} 9. Rd1 {[%emt 0:02:34]} Qe7 {[%emt 0:03:10]} 10. b3 {[%emt 0:02:39]} b6 {[%emt 0:09:20]} 11. e4 {[%emt 0:06:18]} Nxe4 {[%emt 0:00:50]} 12. Nxe4 {[%emt 0:01:34]} dxe4 {[%emt 0:00:06]} 13. Qxe4 {[%emt 0:00:05]} Bb7 {[%emt 0:15:10]} 14. Bf4 {[%emt 0:02:27]} Bxf4 {[%emt 0:08:49]} 15. Qxf4 {[%emt 0:00:12]} Nf6 {[%emt 0:05:54]} 16. Ne5 {[%emt 0:06:36]} Rac8 {[%emt 0:03:37]} 17. Rd3 {[%emt 0:02:38]} Red8 {[%emt 0:09:59]} 18. Rad1 {[%emt 0:01:16]} h6 {[%emt 0:02:23]} 19. h4 {[%emt 0:04:55]} c5 {[%emt 0:05:26]} 20. Bxb7 {[%emt 0:15:52]} Qxb7 {[%emt 0:00:08]} 21. dxc5 {[%emt 0:00:09]} Rxd3 {[%emt 0:00:11]} 22. Rxd3 {[%emt 0:00:08]} bxc5 {[%emt 0:01:09]} 23. g4 {[%emt 0:01:03]} Qc7 {[%emt 0:08:39]} 24. g5 {[%emt 0:29:27]} hxg5 {[%emt 0:02:32]} 25. hxg5 {[%emt 0:00:10]} Ng4 {[%emt 0:00:10]} 26. Qxg4 {[%emt 0:00:10]} Qxe5 {[%emt 0:00:08]} 27. Re3 {[%emt 0:00:07]} Qa1+ {[%emt 0:03:00]} 28. Kg2 {[%emt 0:00:08]} Rd8 {[%emt 0:03:26]} 29. g6 {[%emt 0:05:36]} f5 {[%emt 0:00:32]} 30. Qh4 {[%emt 0:01:24]} Rd1 {[%emt 0:00:29]} 31. Qh2 {[%emt 0:00:35]} Qf6 {[%emt 0:14:05]} 32. Rxe6 {[%emt 0:00:51]} Qg5+ {[%emt 0:00:04]} 33. Qg3 {[%emt 0:00:04]} 1-0

[Event "24th Hoogeschool Zeeland 2022"]
[Site "Vlissingen"]
[Date "2022.08.08"]
[Round "4.24"]
[White "De Boer, Robert"]
[Black "Lefebvre, Herve"]
[Result "0-1"]
[ECO "B13"]
[WhiteElo "2005"]
[BlackElo "2212"]
[Annotator "RC"]
[PlyCount "50"]
[EventDate "2022.08.05"]
[EventType "swiss"]
[EventCountry "NED"]
[SourceTitle "playchess.com"]
[Source "ChessBase"]
[SourceQuality "1"]
[TimeControl "40/5400+30:1800+30"]

1. e4 {[%emt 0:00:03]} c6 {[%emt 0:00:15]} 2. d4 {[%emt 0:00:40]} d5 {[%emt 0:00:05]} 3. exd5 {[%emt 0:00:55]} cxd5 {[%emt 1:31:40]} 4. c4 {[%emt 0:00:07]} Nf6 {[%emt 0:00:00]} 5. Nc3 {[%emt 0:00:06]} Nc6 {[%emt 0:00:00]} 6. Nf3 {[%emt 0:01:03]} Bg4 {[%emt 0:00:00]} 7. Be2 {[%emt 0:05:04]} e6 {[%emt 0:00:00]} 8. O-O {[%emt 0:04:40]} Be7 {[%emt 0:00:00]} 9. Bf4 {[%emt 0:15:50]} dxc4 {[%emt 0:00:00]} 10. Bxc4 {[%emt 0:02:03]} O-O {[%emt 0:00:00]} 11. Be3 {[%emt 0:08:15]} Rc8 {[%emt 0:00:00]} 12. a3 {[%emt 0:16:40]} Bxf3 {[%emt 0:00:00]} 13. gxf3 {[%emt 0:03:07]} Qa5 {[%emt 0:00:00]} 14. Bb5 {[%emt 0:09:16]} a6 {[%emt 0:00:00]} 15. Bxc6 {[%emt 0:01:53]} Rxc6 {[%emt 0:00:00]} 16. Ne4 {[%emt 0:00:17]} Qh5 {[%emt 0:00:00]} 17. Ng3 {[%emt 0:04:15]} Qh3 {[%emt 0:00:00]} 18. Qe2 {[%emt 0:03:08]} Qh4 {[%emt 0:00:00]} 19. Rfc1 {[%emt 0:01:12]} Rfc8 {[%emt 0:00:00]} 20. Qd2 {[%emt 0:01:44]} Nd5 {[%emt 0:00:00]} 21. Rxc6 {[%emt 0:04:21]} Rxc6 {[%emt 0:01:58]} 22. Rc1 {[%emt 0:08:10]} f5 {[%emt 0:00:07]} 23. Rxc6 {[%emt 0:00:08]} bxc6 {[%emt 0:00:03]} 24. f4 {[%emt 0:00:10]} g5 {[%emt 0:00:21]} 25. Ne2 {[%emt 0:01:06]} Bd6 {[%emt 0:08:31]} 0-1

[Event "24th Hoogeschool Zeeland 2022"]
[Site "Vlissingen"]
[Date "2022.08.09"]
[Round "5.1"]
[White "Van den Doel, Erik"]
[Black "Santiago, Yago De Moura"]
[Result "1/2-1/2"]
[ECO "D02"]
[WhiteElo "2589"]
[BlackElo "2513"]
[Annotator "TA"]
[PlyCount "93"]
[EventDate "2022.08.05"]
[EventType "swiss"]
[EventCountry "NED"]
[SourceTitle "playchess.com"]
[Source "ChessBase"]
[SourceQuality "1"]
[TimeControl "40/5400+30:1800+30"]

{[%evp 9,93,11,0,5,0,3,5,18,18,33,31,0,0,0,-2,-24,0,0,0,0,0,0,8,5,6,0,0,0,0,-20,-9,-127,-73,-135,-108,-120,-167,-132,-127,-165,-96,-153,-50,-57,-57,-32,18,16,19,19,12,1,10,10,10,10,9,8,17,8,8,0,0,2,2,0,0,0,0,0,0,0,0,0,0,0,0,0,0,0,0,0,0,0,0,0]} 1. d4 {[%emt 0:00:04]} Nf6 {[%emt 0:00:17]} 2. Nf3 {[%emt 0:00:08]} g6 {[%emt 0:00:23]} 3. Nbd2 {[%emt 0:00:09]} d5 {[%emt 0:01:11]} 4. e3 {[%emt 0:00:12]} Bg7 {[%emt 0:01:15]} 5. b4 {[%emt 0:00:18]} a5 {[%emt 0:18:06]} 6. b5 {[%emt 0:02:27] D02: 1 d4 d5 2 Nf3 sidelines, including 2...Nf6 3 g3 and 2...Nf6 3 Bf4.} c5 {[%emt 0:00:07]} 7. bxc6 {[%emt 0:00:56]} Nxc6 $1 {[%emt 0:00:08] The main line 7...Nxc6 scores better than 7...bxc6.} 8. Be2 {[%emt 0:11:27]} Bf5 {[%emt 0:04:25]} 9. O-O {[%emt 0:06:59]} O-O {[%emt 0:03:29]} 10. c3 {[%emt 0:08:04] Inhibits Nb4.} Qc7 {[%emt 0:04:07] [#]} 11. Ba3 $146 {[%emt 0:00:48][%cal Bc1a3,Ba3d6,Bd6e5][%mdl 32]} ({Predecessor:} 11. a4 e5 12. Ba3 Rfc8 13. Rc1 e4 14. Nh4 Be6 15. g3 g5 16. Ng2 Qd7 17. f3 exf3 18. Bxf3 {½-½ (25) Aronian,L (2765)-Vachier Lagrave,M (2778) Saint Louis 2019}) 11... Rfb8 {[%emt 0:09:55]} 12. c4 {[%emt 0:08:52]} e5 {[%emt 0:20:14]} 13. Nxe5 {[%emt 0:17:19]} Nxe5 {[%emt 0:00:09]} 14. dxe5 {[%emt 0:00:03]} Qxe5 {[%emt 0:00:10]} 15. Nf3 {[%emt 0:01:03]} Qc3 {[%emt 0:10:32]} 16. Bd6 {[%emt 0:05:44]} Rd8 {[%emt 0:00:08]} ({Resist} 16... dxc4 17. Rc1 Qb2 18. Bxb8 (18. Bxc4 Rd8 $14) 18... Rxb8 19. Nd4 $16 (19. Bxc4 b5 $16) (19. Rxc4 Qxa2 20. Nd4 Bd7 $16)) 17. Rc1 {[%emt 0:07:00]} Qb2 {[%emt 0:00:14]} 18. Be5 {[%emt 0:01:57]} Qxa2 {[%emt 0:05:21] White must now prevent ...dxc4.} 19. Nd4 {[%emt 0:05:53]} dxc4 {[%emt 0:00:31]} 20. Rxc4 {[%emt 0:07:19]} (20. Bxc4 $11 Qa3 21. Qf3) 20... Qa3 {[%emt 0:06:09]} ({Better is} 20... a4 21. Rc7 Be6) 21. Qe1 {[%emt 0:02:48]} (21. Bf3 $142) 21... Qe7 $17 {[%emt 0:03:48]} 22. Bc7 {[%emt 0:00:54]} Rd5 {[%emt 0:00:13]} (22... Rdc8 $17 23. Nxf5 (23. Bxa5 $2 Rxc4 24. Nxf5 gxf5 $19) 23... gxf5) 23. Nxf5 $19 {[%emt 0:02:58]} Rxf5 {[%emt 0:00:14]} 24. Qc1 {[%emt 0:01:08]} a4 {[%emt 0:06:14]} ({Black should try} 24... b5 $19 25. Rc6 Ne4) 25. Bb6 $17 {[%emt 0:03:02] [#]} a3 {[%emt 0:02:04]} ({Black should play} 25... Nd7 $1 $17 {[%cal Rd7b6]} 26. Rc8+ Rxc8 27. Qxc8+ Nf8) 26. Bc5 $15 {[%emt 0:00:51] [#]} Rxc5 {[%emt 0:01:04]} 27. Rxc5 {[%emt 0:00:04]} a2 {[%emt 0:02:03]} (27... Qe8 $15 28. Bb5 Qf8) 28. Rc8+ $11 {[%emt 0:00:36] The position is equal.} Rxc8 {[%emt 0:00:07]} 29. Qxc8+ {[%emt 0:00:04]} Ne8 {[%emt 0:00:43]} 30. Bb5 {[%emt 0:02:21]} a1=Q {[%emt 0:00:41]} 31. Rxa1 {[%emt 0:00:07]} Bxa1 {[%emt 0:00:12]} 32. Bxe8 {[%emt 0:00:26][%mdl 4096] Endgame KQB-KQB} Kg7 {[%emt 0:01:09]} 33. g3 {[%emt 0:00:24]} (33. Bb5 {is interesting.} Qb4 34. Qe8 Qb1+ 35. Bf1) 33... Be5 {[%emt 0:00:50]} 34. Bd7 {[%emt 0:01:08]} Qb4 {[%emt 0:00:25]} 35. Bg4 {[%emt 0:01:46]} b5 {[%emt 0:00:33]} 36. Bf3 {[%emt 0:00:23]} Qe7 {[%emt 0:00:36]} 37. Qc6 {[%emt 0:00:51]} b4 {[%emt 0:00:10]} 38. Qc4 {[%emt 0:00:11]} Bc3 {[%emt 0:00:19]} 39. Bd5 {[%emt 0:00:21]} Qf6 {[%emt 0:00:28]} 40. Kg2 {[%emt 0:00:55]} Be1 {[%emt 0:00:31]} 41. Qe2 {[%emt 0:04:54]} Bc3 {[%emt 0:00:28]} 42. h4 {[%emt 0:03:36]} h5 {[%emt 0:01:28]} 43. e4 {[%emt 0:03:14]} Bd4 {[%emt 0:00:45]} 44. f4 {[%emt 0:13:28]} Ba7 {[%emt 0:01:41]} 45. e5 {[%emt 0:00:04]} Qb6 {[%emt 0:00:12]} 46. e6 {[%emt 0:02:21] Active counter play!} fxe6 {[%emt 0:00:31]} 47. Qxe6 {[%emt 0:00:32] Weighted Error Value: White=0.10 (very precise) /Black=0.09 (flawless)} 1/2-1/2

[Event "24th Hoogeschool Zeeland 2022"]
[Site "Vlissingen"]
[Date "2022.08.09"]
[Round "5.2"]
[White "Ikonnikov, Vyacheslav"]
[Black "Lalith Babu M R"]
[Result "1/2-1/2"]
[ECO "E15"]
[WhiteElo "2493"]
[BlackElo "2549"]
[Annotator "TA"]
[PlyCount "73"]
[EventDate "2022.08.05"]
[EventType "swiss"]
[EventCountry "NED"]
[SourceTitle "playchess.com"]
[Source "ChessBase"]
[SourceQuality "1"]
[TimeControl "40/5400+30:1800+30"]

{[%evp 19,73,8,24,5,0,0,22,4,16,-6,-15,-15,-14,-13,-14,-20,-20,-25,-18,-46,-20,-20,-20,-45,-28,-54,-54,-56,-26,-29,0,0,0,0,0,0,0,0,8,5,6,0,0,0,4,2,1,0,3,0,0,0,0,0,0,0]} 1. d4 {[%emt 0:00:03]} Nf6 {[%emt 0:02:08]} 2. Nf3 {[%emt 0:00:24]} e6 {[%emt 0:00:06]} 3. c4 {[%emt 0:00:12]} b6 {[%emt 0:00:26]} 4. g3 {[%emt 0:00:17]} Ba6 {[%emt 0:00:05]} 5. b3 {[%emt 0:00:12]} Bb4+ {[%emt 0:00:06]} 6. Bd2 {[%emt 0:00:06]} Be7 {[%emt 0:00:04]} 7. Bg2 {[%emt 0:00:12]} O-O {[%emt 0:00:10]} 8. O-O {[%emt 0:00:30]} d5 {[%emt 0:00:08]} 9. cxd5 {[%emt 0:01:53]} exd5 {[%emt 0:00:05]} 10. Nc3 {[%emt 0:00:54]} Re8 {[%emt 0:01:02]} 11. Re1 {[%emt 0:05:43] E15: Queen's Indian: 4 g3 sidelines, 4 g3 Ba6 and 4 g3 Bb7 early deviations.} Nbd7 $1 {[%emt 0:01:57][%mdl 4] now scores much better than the old 11...Bb7.} 12. Nh4 {[%emt 0:04:04]} Bb7 {[%emt 0:06:59]} 13. Nf5 {[%emt 0:01:02]} Bf8 {[%emt 0:13:57] [#]} 14. a3 $146 {[%emt 0:02:35]} ({Predecessor:} 14. Ne3 c6 15. Qc2 g6 16. Rad1 a5 17. Nf1 b5 18. Bg5 h6 19. Bf4 Rc8 20. h3 {0-1 (35) Xu,Y (2381)-Wei,Y (2629) China 2014}) 14... Ne4 {[%emt 0:07:00]} 15. Nxe4 {[%emt 0:14:55]} dxe4 {[%emt 0:00:15]} 16. Qc2 {[%emt 0:00:24]} Nf6 {[%emt 0:04:46]} 17. Qb2 {[%emt 0:01:06]} Qd7 {[%emt 0:11:59]} 18. Ne3 {[%emt 0:03:21]} Rad8 {[%emt 0:03:47]} 19. Bc3 {[%emt 0:05:18]} Nd5 {[%emt 0:04:18]} 20. Nxd5 {[%emt 0:06:43]} Bxd5 {[%emt 0:00:20]} 21. Bd2 {[%emt 0:08:13]} Bd6 {[%emt 0:08:03]} 22. b4 {[%emt 0:05:01]} h5 {[%emt 0:02:33][%cal Oh5h4]} 23. Qc1 {[%emt 0:00:50]} Qf5 {[%emt 0:02:03][%cal Oh5h4]} 24. Bf4 {[%emt 0:07:55]} e3 {[%emt 0:09:05]} 25. Bxe3 {[%emt 0:02:45] The position is equal.} Bxg2 {[%emt 0:00:21]} 26. Kxg2 {[%emt 0:00:03]} Qe4+ {[%emt 0:00:16]} 27. Kg1 {[%emt 0:00:29]} h4 {[%emt 0:00:05]} 28. Bg5 $1 {[%emt 0:09:57][%csl LRd8,LRh4]} ({Don't blunder} 28. Qb1 $2 Qg4 29. Kh1 hxg3 $19) 28... Be7 {[%emt 0:02:48]} 29. Bxe7 {[%emt 0:01:27]} Rxe7 {[%emt 0:00:06]} 30. Qf4 {[%emt 0:00:53] Black must now prevent Qxe4.} hxg3 {[%emt 0:02:15]} 31. hxg3 {[%emt 0:00:23] Hoping for Qxe4.} Qxf4 {[%emt 0:01:09]} 32. gxf4 {[%emt 0:00:05]} Rxd4 $11 {[%emt 0:00:03] KRR-KRR} 33. e3 {[%emt 0:00:08]} Rd2 {[%emt 0:00:47]} 34. Red1 {[%emt 0:00:49]} Red7 {[%emt 0:00:28]} 35. Rxd2 {[%emt 0:00:33]} Rxd2 {[%emt 0:00:03]} 36. Rc1 {[%emt 0:00:07]} Rd3 {[%emt 0:00:09]} 37. Rxc7 {[%emt 0:00:32] Weighted Error Value: White=0.05 (flawless) /Black=0.08 (flawless)} 1/2-1/2